fUSD/lending_fUSD_20251211
["ID","MTS","AMOUNT","RATE_DAILY","PERIOD"]
[398271626,1765488645079,-500.0,0.00038373,5]
[398271627,1765488645090,-500.0,0.00038373,5]
[398271628,1765488645101,-500.0,0.00038373,5]
[398271629,1765488645112,-502.07765579,0.00038373,5]
[398271630,1765488645122,-236.42581343,0.00038373,5]
[398271631,1765488645133,-500.0,0.00038373,5]
[398271632,1765488645143,-500.0,0.00038373,5]
[398271633,1765488645154,-500.0,0.00038373,5]
[398271634,1765488645164,-500.0,0.00038373,5]
[398271635,1765488645175,-500.0,0.00038373,5]
[398271636,1765488645185,-500.0,0.00038373,5]
[398271637,1765488645195,-500.0,0.00038373,5]
[398271638,1765488645206,-200.0,0.00038373,5]
[398271639,1765488645216,-306.56456006,0.00038373,5]
[398271640,1765488645228,-500.0,0.00038373,5]
[398271641,1765488645238,-500.0,0.00038373,5]
[398271642,1765488645248,-9422.4039951,0.00038414,2]
[398271643,1765488645259,-1346.76,0.0003858,2]
[398271644,1765488645269,-1429.83314544,0.00038798,2]
[398271645,1765488645280,-859.60630827,0.00038921,5]
[398271646,1765488645290,-1000.83714104,0.00038921,5]
[398271647,1765488645300,-1000.0,0.00038921,5]
[398271648,1765488645310,-1000.0,0.00038921,5]
[398271649,1765488645320,-1000.0,0.00038921,5]
[398271650,1765488645330,-202.97092446,0.00038921,5]
[398271651,1765488645340,-879.55152985,0.00038921,5]
[398271652,1765488645351,-1000.0,0.00038921,5]
[398271653,1765488645362,-1000.0,0.00038921,5]
[398271655,1765488645373,-1000.0,0.00038921,5]
[398271657,1765488645383,-1000.0,0.00038921,5]
[398271659,1765488645393,-1000.0,0.00038921,5]
[398271661,1765488645403,-503.64204876,0.00038921,5]
[398271662,1765488645413,-1000.0,0.00038921,5]
[398271663,1765488645423,-400.0,0.00039058,5]
[398271664,1765488645433,-1406.01,0.00039178,2]
[398271665,1765488645442,-150.6,0.00039452,2]
[398271666,1765488645453,-150.0,0.00039452,2]
[398271667,1765488645463,-150.0,0.00039452,2]
[398271668,1765488645472,-150.0,0.00039452,2]
[398271669,1765488645482,-340.54,0.00039452,2]
[398271670,1765488645492,-150.0,0.00039452,2]
[398271671,1765488645501,-1216.3,0.00039452,2]
[398271672,1765488645512,-463.81,0.00039452,2]
[398271673,1765488645521,-1216.3,0.00039452,2]
[398271674,1765488645531,-1216.3,0.00039452,2]
[398271675,1765488645541,-463.81,0.00039452,2]
[398271676,1765488645550,-463.81,0.00039452,2]
[398271677,1765488645560,-463.81,0.00039452,2]
[398271678,1765488645569,-463.81,0.00039452,2]
[398271679,1765488645578,-463.81,0.00039452,2]
[398271680,1765488645588,-463.81,0.00039452,2]
[398271681,1765488645598,-463.81,0.00039452,2]
[398271682,1765488645608,-463.81,0.00039452,2]
[398271683,1765488645617,-170.76,0.00039452,2]
[398271684,1765488645627,-501.49818744,0.00039468,5]
[398271685,1765488645637,-500.0,0.00039468,5]
[398271686,1765488645647,-1000.0,0.00039468,5]
[398271687,1765488645656,-500.0,0.00039468,5]
[398271688,1765488645666,-501.426629,0.00039468,5]
[398271689,1765488645676,-1500.0,0.00039468,5]
[398271690,1765488645686,-500.84790394,0.00039468,5]
[398271691,1765488645696,-624.61448416,0.00039468,5]
[398271692,1765488645706,-1500.0,0.00039468,5]
[398271693,1765488645717,-150.0,0.000396,30]
[398271694,1765488645726,-150.0,0.000396,30]
[398271695,1765488645738,-600.0,0.00039742,5]
[398271696,1765488645748,-975.56133409,0.00039872,2]
[398271697,1765488645758,-200.0,0.0003989,60]
[398271698,1765488645767,-235.64854472,0.000399,2]
[398271699,1765488645777,-715.91,0.000399,30]
[398271700,1765488645786,-11572.60732208,0.00039962,15]
[398271701,1765488645796,-500.0,0.00039972,30]
[398271702,1765488645806,-500.0,0.00039972,30]
[398271703,1765488645816,-300.0,0.00039972,2]
[398271704,1765488645826,-500.0,0.00039972,30]
[398271705,1765488645836,-1306.29,0.00039972,2]
[398271706,1765488645846,-12505.3601344,0.00039991,2]
[398271707,1765488645857,-151.0,0.00039995,14]
[398271708,1765488645867,-1306.29,0.00039997,2]
[398271709,1765488645878,-272.66090676,0.00039998,2]
[398271710,1765488645889,-196.79021377,0.00039998,2]
[398271711,1765488645899,-480.8162296,0.00039998,30]
[398271712,1765488645908,-1111.0,0.00039998,30]
[398271713,1765488645918,-500.0,0.00039998,30]
[398271714,1765488645927,-1000.0,0.00039998,30]
[398271715,1765488645938,-500.0,0.00039998,30]
[398271716,1765488645948,-520.0,0.00039998,30]
[398271717,1765488645958,-500.0,0.00039998,30]
[398271718,1765488645968,-500.0,0.00039998,30]
[398271719,1765488645977,-1000.0,0.00039998,30]
[398271721,1765488645987,-1111.0,0.00039998,30]
[398271722,1765488645997,-1000.0,0.00039998,30]
[398271723,1765488646006,-500.0,0.00039998,30]
[398271724,1765488646015,-500.0,0.00039998,30]
[398271725,1765488646025,-539.24,0.00039998,30]
[398271726,1765488646035,-1000.0,0.00039998,30]
[398271727,1765488646044,-1111.0,0.00039998,30]
[398271728,1765488646053,-500.0,0.00039998,30]
[398271729,1765488646063,-1000.0,0.00039998,30]
[398271730,1765488646073,-500.0,0.00039998,30]
[398271731,1765488646083,-500.0,0.00039998,30]
[398271732,1765488646093,-559.19188,0.00039998,30]
[398271733,1765488646103,-1000.0,0.00039998,30]
[398271734,1765488646113,-1111.0,0.00039998,30]
[398271735,1765488646123,-500.0,0.00039998,30]
[398271736,1765488646133,-1000.0,0.00039998,30]
[398271737,1765488646143,-500.0,0.00039998,30]
[398271738,1765488646154,-500.0,0.00039998,30]
[398271739,1765488646164,-579.88197956,0.00039998,30]
[398271741,1765488646174,-1111.0,0.00039998,30]
[398271743,1765488646184,-1000.0,0.00039998,30]
[398271745,1765488646194,-500.0,0.00039998,30]
[398271747,1765488646205,-500.0,0.00039998,30]
[398271749,1765488646215,-1000.0,0.00039998,30]
[398271751,1765488646225,-414.0,0.00039998,30]
[398271753,1765488646235,-500.0,0.00039998,30]
[398271755,1765488646245,-500.0,0.00039998,30]
[398271757,1765488646255,-601.3376128,0.00039998,30]
[398271759,1765488646265,-1000.0,0.00039998,30]
[398271761,1765488646275,-1111.0,0.00039998,30]
[398271763,1765488646285,-500.0,0.00039998,30]
[398271764,1765488646295,-518.5,0.00039998,30]
[398271765,1765488646304,-1000.0,0.00039998,30]
[398271766,1765488646314,-429.318,0.00039998,30]
[398271767,1765488646324,-500.0,0.00039998,30]
[398271768,1765488646334,-500.0,0.00039998,30]
[398271769,1765488646344,-623.58710448,0.00039998,30]
[398271770,1765488646354,-500.0,0.00039998,30]
[398271771,1765488646364,-1111.0,0.00039998,30]
[398271772,1765488646373,-1000.0,0.00039998,30]
[398271773,1765488646383,-537.6845,0.00039998,30]
[398271774,1765488646392,-1000.0,0.00039998,30]
[398271775,1765488646402,-500.0,0.00039998,30]
[398271776,1765488646414,-445.202766,0.00039998,30]
[398271777,1765488646424,-500.0,0.00039998,30]
[398271778,1765488646433,-500.0,0.00039998,30]
[398271779,1765488646444,-1111.0,0.00039998,30]
[398271780,1765488646454,-646.65982734,0.00039998,30]
[398271781,1765488646464,-1000.0,0.00039998,30]
[398271782,1765488646474,-1000.0,0.00039998,30]
[398271783,1765488646483,-557.5788265,0.00039998,30]
[398271785,1765488646493,-500.0,0.00039998,30]
[398271788,1765488646508,-461.67526834,0.00039998,30]
[398271790,1765488646518,-500.0,0.00039998,30]
[398271792,1765488646529,-500.0,0.00039998,30]
[398271794,1765488646539,-1111.0,0.00039998,30]
[398271796,1765488646550,-670.58624095,0.00039998,30]
[398271798,1765488646560,-1000.0,0.00039998,30]
[398271800,1765488646570,-1000.0,0.00039998,30]
[398271802,1765488646579,-478.75725327,0.00039998,30]
[398271804,1765488646591,-500.0,0.00039998,30]
[398271806,1765488646601,-500.0,0.00039998,30]
[398271809,1765488646611,-500.0,0.00039998,30]
[398271811,1765488646621,-1111.0,0.00039998,30]
[398271813,1765488646633,-1000.0,0.00039998,30]
[398271815,1765488646645,-695.39793187,0.00039998,30]
[398271817,1765488646655,-500.0,0.00039998,30]
[398271819,1765488646666,-496.47127164,0.00039998,30]
[398271821,1765488646676,-1189.0,0.00039998,30]
[398271823,1765488646686,-514.84070869,0.00039998,30]
[398271825,1765488646697,-500.0,0.00039998,30]
[398271827,1765488646707,-151.0,0.00039998,30]
[398271829,1765488646717,-533.88981491,0.00039998,30]
[398271831,1765488646727,-500.0,0.00039998,30]
[398271834,1765488646737,-151.0,0.00039998,30]
[398271836,1765488646749,-553.64373807,0.00039998,30]
[398271838,1765488646759,-500.0,0.00039998,30]
[398271840,1765488646769,-250.0,0.00039998,30]
[398271842,1765488646779,-500.0,0.00039998,30]
[398271844,1765488646789,-595.37131296,0.00039998,30]
[398271846,1765488646799,-151.0,0.00039998,30]
[398271847,1765488646810,-500.0,0.00039998,30]
[398271848,1765488646821,-6888.0,0.00039998,30]
[398271849,1765488646831,-250.0,0.00039998,30]
[398271850,1765488646841,-500.0,0.00039998,30]
[398271851,1765488646852,-151.0,0.00039998,30]
[398271852,1765488646867,-7142.856,0.00039998,30]
[398271853,1765488646883,-250.0,0.00039998,30]
[398271854,1765488646894,-151.0,0.00039998,30]
[398271855,1765488646906,-500.0,0.00039998,30]
[398271856,1765488646917,-500.0,0.00039998,30]
[398271857,1765488646927,-151.0,0.00039998,30]
[398271858,1765488646938,-2623.15705455,0.00039998,30]
[398271859,1765488646950,-151.0,0.00039998,30]
[398271860,1765488646960,-500.0,0.00039998,30]
[398271861,1765488646971,-500.0,0.00039998,30]
[398271862,1765488646982,-151.0,0.00039998,30]
[398271863,1765488646993,-250.0,0.00039998,30]
[398271864,1765488647004,-151.0,0.00039998,30]
[398271865,1765488647015,-500.0,0.00039998,30]
[398271866,1765488647025,-500.0,0.00039998,30]
[398271868,1765488647035,-151.0,0.00039998,30]
[398271871,1765488647046,-250.0,0.00039998,30]
[398271873,1765488647056,-151.0,0.00039998,30]
[398271875,1765488647070,-151.0,0.00039998,30]
[398271877,1765488647081,-500.0,0.00039998,30]
[398271879,1765488647092,-151.0,0.00039998,30]
[398271881,1765488647102,-250.0,0.00039998,30]
[398271883,1765488647114,-151.0,0.00039998,30]
[398271886,1765488647129,-151.0,0.00039998,30]
[398271888,1765488647140,-10000.0,0.00039998,30]
[398271890,1765488647151,-500.0,0.00039998,30]
[398271892,1765488647162,-151.0,0.00039998,30]
[398271894,1765488647174,-250.0,0.00039998,30]
[398271896,1765488647184,-151.0,0.00039998,30]
[398271898,1765488647194,-151.0,0.00039998,30]
[398271900,1765488647204,-10000.0,0.00039998,30]
[398271902,1765488647215,-500.0,0.00039998,30]
[398271904,1765488647226,-151.0,0.00039998,30]
[398271906,1765488647236,-250.0,0.00039998,30]
[398271908,1765488647247,-151.0,0.00039998,30]
[398271911,1765488647258,-10000.0,0.00039998,30]
[398271913,1765488647272,-500.0,0.00039998,30]
[398271915,1765488647283,-250.0,0.00039998,30]
[398271917,1765488647293,-151.0,0.00039998,30]
[398271919,1765488647303,-151.0,0.00039998,30]
[398271921,1765488647314,-151.0,0.00039998,30]
[398271924,1765488647324,-151.0,0.00039998,30]
[398271926,1765488647334,-151.0,0.00039998,30]
[398271928,1765488647344,-151.0,0.00039998,30]
[398271930,1765488647354,-151.0,0.00039998,30]
[398271932,1765488647364,-151.0,0.00039998,30]
[398271934,1765488647375,-250.0,0.00039998,30]
[398271936,1765488647384,-151.0,0.00039998,30]
[398271938,1765488647394,-151.0,0.00039998,30]
[398271940,1765488647404,-250.0,0.00039998,30]
[398271942,1765488647414,-151.0,0.00039998,30]
[398271944,1765488647424,-278.6519055,0.00039998,30]
[398271946,1765488647436,-250.0,0.00039998,30]
[398271948,1765488647446,-151.0,0.00039998,30]
[398271950,1765488647456,-250.0,0.00039998,30]
[398271951,1765488647466,-500.0,0.00039998,30]
[398271952,1765488647476,-151.0,0.00039998,30]
[398271953,1765488647486,-250.0,0.00039998,30]
[398271954,1765488647496,-500.0,0.00039998,30]
[398271955,1765488647505,-1000.0,0.00039998,30]
[398271956,1765488647515,-151.0,0.00039998,30]
[398271957,1765488647525,-250.0,0.00039998,30]
[398271958,1765488647535,-500.0,0.00039998,30]
[398271959,1765488647545,-1000.0,0.00039998,30]
[398271960,1765488647555,-151.0,0.00039998,30]
[398271961,1765488647564,-151.0,0.00039998,30]
[398271962,1765488647574,-500.0,0.00039998,30]
[398271963,1765488647585,-250.0,0.00039998,30]
[398271964,1765488647595,-1000.0,0.00039998,30]
[398271965,1765488647605,-151.0,0.00039998,30]
[398271966,1765488647615,-500.0,0.00039998,30]
[398271967,1765488647631,-250.0,0.00039998,30]
[398271968,1765488647641,-1000.0,0.00039998,30]
[398271969,1765488647652,-500.0,0.00039998,30]
[398271970,1765488647664,-250.0,0.00039998,30]
[398271971,1765488647674,-151.0,0.00039998,30]
[398271972,1765488647684,-1000.0,0.00039998,30]
[398271973,1765488647694,-500.0,0.00039998,30]
[398271974,1765488647704,-500.0,0.00039998,30]
[398271975,1765488647715,-151.0,0.00039998,30]
[398271976,1765488647725,-1000.0,0.00039998,30]
[398271977,1765488647735,-518.5,0.00039998,30]
[398271978,1765488647745,-500.0,0.00039998,30]
[398271979,1765488647755,-151.0,0.00039998,30]
[398271980,1765488647765,-1000.0,0.00039998,30]
[398271981,1765488647775,-537.6845,0.00039998,30]
[398271982,1765488647785,-500.0,0.00039998,30]
[398271985,1765488647983,-151.0,0.00039998,30]
[398271986,1765488648023,-1000.0,0.00039998,30]
[398271987,1765488648033,-557.5788265,0.00039998,30]
[398271988,1765488648043,-1000.0,0.00039998,30]
[398271989,1765488648053,-578.20924308,0.00039998,30]
[398271990,1765488648063,-599.60298507,0.00039998,30]
[398271991,1765488648073,-621.78829552,0.00039998,30]
[398271992,1765488648082,-644.79446246,0.00039998,30]
[398271993,1765488648092,-668.65185757,0.00039998,30]
[398271994,1765488648102,-719.04747942,0.00039998,30]
[398271995,1765488648112,-1000.0,0.00039998,3]
[398271996,1765488648124,-3327.34677863,0.00039999,30]
[398271997,1765488648134,-5848.46,0.00039999,30]
[398271998,1765488648144,-5848.46,0.00039999,30]
[398271999,1765488648154,-5848.46,0.00039999,30]
[398272000,1765488648164,-500.0,0.00039999,30]
[398272001,1765488648174,-500.0,0.00039999,30]
[398272002,1765488648184,-500.0,0.00039999,30]
[398272003,1765488648194,-500.0,0.00039999,30]
[398272004,1765488648204,-500.0,0.00039999,30]
[398272005,1765488648215,-541.45485248,0.00039999,30]
[398272006,1765488648224,-3897.47,0.00039999,30]
[398272007,1765488648234,-3897.47,0.00039999,30]
[398272008,1765488648244,-3897.47,0.00039999,30]
[398272009,1765488648255,-3897.47,0.00039999,30]
[398272010,1765488648265,-3897.47,0.00039999,30]
[398272011,1765488648275,-3897.47,0.00039999,30]
[398272012,1765488648285,-3897.47,0.00039999,30]
[398272013,1765488648295,-4734.83,0.00039999,30]
[398272014,1765488648305,-4734.83,0.00039999,30]
[398272015,1765488648315,-4734.83,0.00039999,30]
[398272016,1765488648324,-4734.83,0.00039999,30]
[398272017,1765488648334,-4734.83,0.00039999,30]
[398272018,1765488648344,-4734.83,0.00039999,30]
[398272019,1765488648354,-4734.83,0.00039999,30]
[398272020,1765488648364,-4734.83,0.00039999,30]
[398272021,1765488648374,-444.71997537,0.00039999,30]
[398272022,1765488648384,-444.71997537,0.00039999,30]
[398272023,1765488648394,-444.71997537,0.00039999,30]
[398272024,1765488648403,-444.71997537,0.00039999,30]
[398272025,1765488648413,-444.71997537,0.00039999,30]
[398272026,1765488648423,-444.71997537,0.00039999,30]
[398272027,1765488648433,-444.71997537,0.00039999,30]
[398272028,1765488648443,-444.71997537,0.00039999,30]
[398272029,1765488648452,-687.37,0.00039999,30]
[398272030,1765488648461,-687.37,0.00039999,30]
[398272031,1765488648472,-687.37,0.00039999,30]
[398272032,1765488648481,-687.37,0.00039999,30]
[398272033,1765488648491,-687.37,0.00039999,30]
[398272034,1765488648500,-687.37,0.00039999,30]
[398272035,1765488648510,-687.37,0.00039999,30]
[398272036,1765488648520,-687.37,0.00039999,30]
[398272037,1765488648529,-500.0,0.00039999,30]
[398272038,1765488648539,-500.0,0.00039999,30]
[398272039,1765488648549,-500.0,0.00039999,30]
[398272040,1765488648559,-500.0,0.00039999,30]
[398272041,1765488648568,-216.3,0.00039999,30]
[398272042,1765488648579,-500.0,0.00039999,30]
[398272043,1765488648589,-500.0,0.00039999,30]
[398272044,1765488648599,-500.0,0.00039999,30]
[398272045,1765488648609,-500.0,0.00039999,30]
[398272046,1765488648619,-500.0,0.00039999,30]
[398272047,1765488648631,-448.16,0.00039999,30]
[398272048,1765488648641,-252.30782953,0.00039999,30]
[398272049,1765488648650,-500.0,0.00039999,30]
[398272050,1765488648660,-500.0,0.00039999,30]
[398272051,1765488648670,-500.0,0.00039999,30]
[398272052,1765488648680,-500.0,0.00039999,30]
[398272053,1765488648689,-500.0,0.00039999,30]
[398272054,1765488648699,-558.38,0.00039999,30]
[398272055,1765488648709,-500.0,0.00039999,30]
[398272056,1765488648719,-500.0,0.00039999,30]
[398272057,1765488648729,-628.08,0.00039999,30]
[398272058,1765488648739,-151.0,0.00039999,30]
[398272059,1765488648749,-151.0,0.00039999,30]
[398272060,1765488648759,-151.0,0.00039999,120]
[398272061,1765488648769,-151.0,0.00039999,120]
[398272062,1765488648778,-151.0,0.00039999,120]
[398272063,1765488648788,-183.754624,0.00039999,120]
[398272064,1765488648799,-1306.29,0.00039999,2]
[398272065,1765488648809,-1306.29,0.00039999,2]
[398272066,1765488648820,-1306.29,0.00039999,2]
[398272067,1765488648830,-1306.29,0.00039999,2]
[398272068,1765488648840,-1306.29,0.00039999,2]
[398272069,1765488648851,-1306.29,0.00039999,2]
[398272070,1765488648865,-1306.29,0.00039999,2]
[398272071,1765488648875,-50000.0,0.0004,32]
[398272072,1765488648885,-50000.0,0.0004,40]
[398272073,1765488648896,-600.0,0.0004,30]
[398272074,1765488648906,-154.0,0.0004,5]
[398272075,1765488648916,-17930.55402127,0.0004,34]
[398272076,1765488648926,-16380.17008606,0.0004,120]
[398272077,1765488649184,-603703.62776726,0.0004,120]
[398272078,1765488649196,-5000.24206849,0.0004,13]
[398272079,1765488649206,-3659.69,0.0004,120]
[398272080,1765488649217,-245.74929,0.0004,120]
[398272081,1765488649229,-161.6438483,0.0004,120]
[398272082,1765488649239,-165.0,0.0004,2]
[398272083,1765488649249,-21346.16,0.0004,60]
[398272084,1765488649259,-5524.50055535,0.0004,14]
[398272085,1765488649270,-4946.12072304,0.0004,30]
[398272086,1765488649280,-11615.09647334,0.0004,30]
[398272087,1765488649290,-16896.32572736,0.0004,60]
[398272088,1765488649301,-14718.28679161,0.0004,30]
[398272089,1765488649311,-38005.15824684,0.0004,30]
[398272090,1765488649322,-199046.34783852,0.0004,30]
[398272091,1765488649334,-20286.55135783,0.0004,30]
[398272092,1765488649346,-2038.41457169,0.0004,30]
[398272093,1765488649358,-1126.81324307,0.0004,30]
[398272094,1765488649378,-325.58015431,0.0004,30]
[398272095,1765488649390,-263.95605343,0.0004,30]
[398272096,1765488649403,-10021.79999995,0.0004,30]
[398272097,1765488649415,-887.1555738,0.0004,30]
[398272098,1765488649431,-561.63601799,0.0004,30]
[398272099,1765488649443,-259093.61110988,0.0004,30]
[398272100,1765488649459,-768.0299854,0.0004,30]
[398272101,1765488649470,-2049.69994,0.0004,30]
[398272102,1765488649482,-122421.91356397,0.0004,30]
[398272103,1765488649494,-4786.26346561,0.0004,30]
[398272104,1765488649506,-4415.469437,0.0004,30]
[398272114,1765488899806,-357.17,0.00032351,120]
[398272115,1765488899874,-500.0,0.0003617,13]
[398272116,1765488899939,-500.0,0.0003617,13]
[398272117,1765488900003,-500.0,0.0003617,13]
[398272118,1765488900062,-500.0,0.0003617,13]
[398272119,1765488900125,-500.0,0.0003617,13]
[398272120,1765488900185,-500.0,0.0003617,13]
[398272121,1765488900256,-500.0,0.0003617,13]
[398272122,1765488900576,-500.0,0.0003617,13]
[398272123,1765488900746,-500.0,0.0003617,13]
[398272124,1765488900807,-500.0,0.0003617,13]
[398272125,1765488900870,-357.17,0.00036395,120]
[398272126,1765488900927,-1763.63046298,0.00039962,15]
[398272127,1765488900986,-500.0,0.00039972,30]
[398272128,1765488901040,-500.0,0.00039972,30]
[398272129,1765488901103,-500.0,0.00039972,30]
[398272130,1765488901160,-924.764,0.00039999,56]
[398272131,1765488901220,-87782.61046061,0.0004,30]
[398272132,1765488901288,-155370.2712032,0.0004,30]
[398272133,1765488901356,-162.5,0.0004,60]
[398272134,1765488901426,-158.87434359,0.0004,120]
[398272135,1765488901496,-46160.7034621,0.0004,120]
[398272136,1765488901563,-1027.32352071,0.0004,30]
[398272137,1765488901621,-168.83,0.0004,14]
[398272138,1765488901676,-2500.0,0.0004,120]
[398272139,1765488901732,-151.0,0.0004,120]
[398272140,1765488901789,-151.0,0.0004,120]
[398272141,1765488901845,-151.0,0.0004,120]
[398272142,1765488901899,-151.0,0.0004,120]
[398272143,1765488901955,-151.0,0.0004,120]
[398272144,1765488902010,-151.0,0.0004,120]
[398272145,1765488902065,-151.0,0.0004,120]
[398272146,1765488902125,-151.0,0.0004,120]
[398272147,1765488902180,-151.0,0.0004,120]
[398272148,1765488902238,-151.0,0.0004,120]
[398272149,1765488902294,-151.0,0.0004,30]
[398272150,1765488902351,-151.0,0.0004,30]
[398272151,1765488902411,-151.0,0.0004,30]
[398272152,1765488902469,-156.350601,0.0004,30]
[398272153,1765488902526,-151.0,0.0004,120]
[398272154,1765488902589,-284.0238278,0.0004,120]
[398272155,1765488902655,-151.0,0.0004,120]
[398272156,1765488902711,-151.0,0.0004,120]
[398272157,1765488902777,-151.0,0.0004,120]
[398272158,1765488902845,-151.0,0.0004,120]
[398272159,1765488902901,-151.0,0.0004,120]
[398272160,1765488902958,-203.416642,0.0004,120]
[398272161,1765488903017,-200.0,0.0004,120]
[398272162,1765488903088,-287.694352,0.0004,120]
[398272163,1765488903149,-151.0,0.0004,120]
[398272164,1765488903211,-151.0,0.0004,120]
[398272165,1765488903273,-234.0,0.0004,14]
[398272166,1765488903335,-150.55560799,0.0004,30]
[398272167,1765488903398,-500.0,0.0004,30]
[398272168,1765488903457,-500.0,0.0004,30]
[398272169,1765488903517,-22281.3571614,0.0004,120]
[398272170,1765488903576,-500.0,0.0004,30]
[398272171,1765488903634,-500.0,0.0004,30]
[398272172,1765488903690,-500.0,0.0004,30]
[398272173,1765488903748,-500.0,0.0004,30]
[398272174,1765488903807,-150.0,0.0004,30]
[398272175,1765488903866,-150.0,0.0004,30]
[398272176,1765488903928,-3897.47,0.00040015,30]
[398272177,1765488903998,-5848.46,0.00040016,30]
[398272178,1765488904059,-5848.46,0.00040016,30]
[398272179,1765488904119,-5848.46,0.00040016,30]
[398272180,1765488904179,-5848.46,0.00040016,30]
[398272181,1765488904240,-5848.68232769,0.00040016,30]
[398272182,1765488904300,-151.0,0.00040016,120]
[398272183,1765488904361,-151.0,0.00040016,120]
[398272184,1765488904426,-151.0,0.00040016,30]
[398272185,1765488904489,-151.0,0.00040016,120]
[398272186,1765488904550,-10000.0,0.0004002,120]
[398272187,1765488904610,-975.56133402,0.00040119,28]
[398272188,1765488904669,-500.0,0.00040137,30]
[398272189,1765488904733,-500.0,0.00040137,30]
[398272190,1765488904794,-500.0,0.00040137,30]
[398272191,1765488904854,-500.0,0.00040137,30]
[398272192,1765488904915,-500.0,0.00040137,30]
[398272193,1765488904979,-500.0,0.00040137,30]
[398272194,1765488905042,-150.0,0.00040137,30]
[398272195,1765488905105,-150.0,0.00040137,30]
[398272196,1765488905174,-25000.0,0.00040137,15]
[398272197,1765488905241,-25000.0,0.00040137,15]
[398272198,1765488905304,-20287.12147801,0.00040137,15]
[398272199,1765488905373,-150.0,0.00040246,30]
[398272200,1765488905434,-7898.41879702,0.00040246,30]
[398272201,1765488905497,-500.0,0.00040274,30]
[398272202,1765488905555,-500.0,0.00040274,30]
[398272203,1765488905613,-500.0,0.00040274,30]
[398272204,1765488905827,-500.0,0.00040274,30]
[398272205,1765488905888,-500.0,0.00040274,30]
[398272206,1765488905951,-500.0,0.00040274,30]
[398272207,1765488906008,-150.0,0.00040274,30]
[398272208,1765488906070,-150.0,0.00040274,30]
[398272209,1765488906129,-975.56133402,0.00040365,28]
[398272210,1765488906188,-500.0,0.00040411,30]
[398272211,1765488906248,-200.0,0.00040411,30]
[398272212,1765488906309,-500.0,0.00040411,30]
[398272213,1765488906369,-500.0,0.00040411,30]
[398272214,1765488906428,-500.0,0.00040411,30]
[398272215,1765488906503,-500.0,0.00040411,30]
[398272216,1765488906570,-150.0,0.00040411,30]
[398272217,1765488906634,-200.0,0.00040411,30]
[398272218,1765488906693,-1074.0,0.00040437,30]
[398272219,1765488906755,-357.17,0.00040439,120]
[398272220,1765488906820,-1000.0,0.00040499,120]
[398272221,1765488906889,-227.52279267,0.000405,120]
[398272222,1765488906958,-3637.0,0.000405,120]
[398272223,1765488907019,-900.3995,0.000405,120]
[398272224,1765488907093,-2500.0,0.000405,120]
[398272225,1765488907166,-600.0,0.00040548,30]
[398272226,1765488907227,-500.0,0.00040548,30]
[398272227,1765488907289,-323.28873636,0.00040548,30]
[398272228,1765488907349,-500.0,0.00040548,30]
[398272229,1765488907414,-500.0,0.00040548,30]
[398272230,1765488907474,-500.0,0.00040548,30]